fUST/lending_fUST_20240815
["ID","MTS","AMOUNT","RATE_DAILY","PERIOD"]
[334937029,1723660051083,-21813.27117849,9.524e-05,2]
[334937030,1723660052101,-2378.73274703,9.524e-05,2]
[334937032,1723660146103,-401.7859896,9.524e-05,2]
[334937033,1723660146126,-200.0,9.53e-05,2]
[334937034,1723660146147,-3602.88765659,0.0001,2]
[334937035,1723660146170,-24900.0,0.0001056,2]
[334937036,1723660146194,-400.0,0.000109,2]
[334937037,1723660146215,-882.53904786,0.00010958,2]
[334937039,1723660150120,-6707.57069788,0.00010958,2]
[334937040,1723660150142,-482.1,0.00010959,2]
[334937041,1723660150165,-189.119368,0.00011236,2]
[334937042,1723660150187,-189.119368,0.00011267,2]
[334937043,1723660150210,-189.119368,0.00011298,2]
[334937044,1723660150232,-189.119368,0.00011329,2]
[334937045,1723660150255,-189.119368,0.00011359,2]
[334937046,1723660150277,-189.119368,0.0001139,2]
[334937047,1723660150300,-189.119368,0.00011421,2]
[334937048,1723660150321,-189.119368,0.00011452,2]
[334937049,1723660150343,-189.119368,0.00011483,2]
[334937050,1723660150367,-189.119368,0.00011513,2]
[334937051,1723660150389,-189.119368,0.00011544,2]
[334937052,1723660150412,-189.119368,0.00011575,2]
[334937053,1723660150435,-189.119368,0.00011606,2]
[334937054,1723660150459,-6189.3822771,0.00011612,2]
[334937055,1723660150482,-189.119368,0.00011637,2]
[334937056,1723660150503,-189.119368,0.00011668,2]
[334937057,1723660150529,-189.119368,0.00011698,2]
[334937058,1723660150551,-189.119368,0.00011729,2]
[334937059,1723660150571,-8142.6559259,0.00011753,2]
[334937060,1723660150593,-189.119368,0.0001176,2]
[334937061,1723660150615,-189.119368,0.00011791,2]
[334937062,1723660150636,-189.119368,0.00011822,2]
[334937063,1723660150655,-1000.0,0.00012,7]
[334937064,1723660150675,-5373.43799947,0.0001212,2]
[334937065,1723660150922,218.09499306,9.524e-05,2]
[334937066,1723660152118,-396.03042609,0.000123,2]
[334937068,1723660160315,-3152.54802978,0.000125,2]
[334937069,1723660160338,-969.37333734,0.00012689,2]
[334937070,1723660162149,281.79468446,9.53e-05,2]
[334937071,1723660173735,273.37336231,9.9e-05,2]
[334937077,1723660232928,-373.57965821,0.00012971,2]
[334937110,1723660238949,-119.45966725,0.00012971,2]
[334937112,1723660238962,-404.08727484,0.00012972,2]
[334937114,1723660238973,-46.23305791,0.00012972,2]
[334937147,1723660239708,-763.4255553,0.00012972,2]
[334937148,1723660239718,-500.0,0.00012986,2]
[334937149,1723660239727,-494.87154082,0.00012999,2]
[334937150,1723660239738,-665.39970149,0.00013,2]
[334937151,1723660239751,-8770.30319103,0.00013,2]
[334937152,1723660239763,-203.19238024,0.00013,2]
[334937153,1723660239774,-1000.0,0.00013,13]
[334937154,1723660239783,-3947.51217878,0.00013,2]
[334937155,1723660239792,-2265.3036198,0.00013,2]
[334937156,1723660239802,-154.79103211,0.00013423,2]
[334937157,1723660239812,-500.0,0.00013424,2]
[334937158,1723660239823,-500.0,0.00013424,2]
[334937159,1723660239833,-210.13067206,0.00013449,2]
[334937160,1723660239846,-210.13067206,0.00013449,2]
[334937161,1723660239855,-342.47979758,0.0001345,2]
[334937162,1723660239867,-1886.20203004,0.0001358,2]
[334937163,1723660239876,-476.50923488,0.0001358,2]
[334937164,1723660239886,-154.74467129,0.00013596,2]
[334937165,1723660239896,-165.04153125,0.00013597,2]
[334937166,1723660239906,-154.74467129,0.00013597,2]
[334937167,1723660239917,-2000.0,0.00013598,2]
[334937168,1723660239927,-208.51638357,0.00013677,2]
[334937169,1723660239936,-6835.49625844,0.00013678,2]
[334937170,1723660239946,-8838.10257053,0.00013679,2]
[334937171,1723660239956,-15848.71009405,0.0001368,2]
[334937172,1723660239965,-500.0,0.00013687,2]
[334937173,1723660239974,-38702.41492194,0.00013688,2]
[334937174,1723660239983,-39486.31797141,0.00013688,2]
[334937175,1723660240000,-12953.61677575,0.00013688,2]
[334937203,1723660240814,-272.2335374,0.00013688,2]
[334937205,1723660240825,-1971.80178294,0.00013688,2]
[334937206,1723660240834,-500.0,0.00013697,2]
[334937208,1723660240844,-500.0,0.00013697,2]
[334937209,1723660240853,-500.0,0.00013697,2]
[334937212,1723660240863,-500.0,0.00013697,2]
[334937214,1723660240872,-500.0,0.00013697,2]
[334937215,1723660240882,-500.0,0.00013697,2]
[334937217,1723660240891,-19666.70901017,0.00013698,2]
[334937219,1723660240900,-151.0,0.00013698,2]
[334937221,1723660240909,-503.46105767,0.00013698,2]
[334937224,1723660240921,-500.0,0.00013698,2]
[334937227,1723660240930,-500.0,0.00013698,2]
[334937230,1723660240939,-500.0,0.00013698,2]
[334937232,1723660240950,-500.0,0.00013698,2]
[334937234,1723660240961,-500.0,0.00013698,2]
[334937236,1723660240971,-500.0,0.00013698,2]
[334937238,1723660240979,-500.0,0.00013698,2]
[334937240,1723660240989,-194.33700425,0.00013698,2]
[334937242,1723660241013,-305.66299575,0.00013698,2]
[334937244,1723660241022,-2.64946675,0.00013698,2]
[334937246,1723660241034,-497.35053325,0.00013698,2]
[334937248,1723660241044,-631.74,0.00013698,2]
[334937250,1723660241053,-500.0,0.00013698,2]
[334937251,1723660241062,-500.0,0.00013698,2]
[334937253,1723660241071,-356.79783465,0.00013698,2]
[334937255,1723660241081,-500.0,0.00013698,2]
[334937257,1723660241090,-500.0,0.00013698,2]
[334937258,1723660241099,-500.0,0.00013698,2]
[334937259,1723660241108,-500.0,0.00013698,2]
[334937260,1723660241118,-500.0,0.00013698,2]
[334937261,1723660241128,-500.0,0.00013698,2]
[334937262,1723660241137,-500.0,0.00013698,2]
[334937263,1723660241146,-500.0,0.00013698,2]
[334937264,1723660241155,-500.0,0.00013698,2]
[334937265,1723660241165,-500.0,0.00013698,2]
[334937266,1723660241174,-500.0,0.00013698,2]
[334937267,1723660241184,-500.0,0.00013698,2]
[334937268,1723660241193,-500.0,0.00013698,2]
[334937269,1723660241202,-500.0,0.00013698,2]
[334937270,1723660241212,-500.0,0.00013698,2]
[334937271,1723660241221,-500.0,0.00013698,2]
[334937272,1723660241230,-500.0,0.00013698,2]
[334937273,1723660241240,-213.54,0.00013698,2]
[334937274,1723660241250,-500.0,0.00013698,2]
[334937275,1723660241262,-500.0,0.00013698,2]
[334937276,1723660241272,-612.66,0.00013698,2]
[334937277,1723660241281,-500.0,0.00013698,2]
[334937278,1723660241291,-500.0,0.00013698,2]
[334937279,1723660241300,-500.0,0.00013698,2]
[334937280,1723660241309,-570.01,0.00013698,2]
[334937281,1723660241319,-500.0,0.00013698,2]
[334937282,1723660241329,-500.0,0.00013698,2]
[334937283,1723660241339,-500.0,0.00013698,2]
[334937284,1723660241348,-500.0,0.00013698,2]
[334937285,1723660241358,-504.80731174,0.00013698,2]
[334937286,1723660241367,-500.0,0.00013698,2]
[334937287,1723660241376,-500.0,0.00013698,2]
[334937288,1723660241389,-500.0,0.00013698,2]
[334937289,1723660241398,-500.0,0.00013698,2]
[334937290,1723660241409,-502.65813162,0.00013698,2]
[334937291,1723660241418,-500.0,0.00013698,2]
[334937292,1723660241428,-500.0,0.00013698,2]
[334937293,1723660241437,-500.0,0.00013698,2]
[334937294,1723660241446,-500.0,0.00013698,2]
[334937295,1723660241456,-500.0,0.00013698,2]
[334937296,1723660241467,-500.0,0.00013698,2]
[334937297,1723660241477,-248.4684193,0.00013698,2]
[334937298,1723660241486,-500.0,0.00013698,2]
[334937299,1723660241495,-500.0,0.00013698,2]
[334937300,1723660241507,-507.13653321,0.00013698,2]
[334937301,1723660241516,-500.0,0.00013698,2]
[334937302,1723660241526,-500.0,0.00013698,2]
[334937303,1723660241535,-500.0,0.00013698,2]
[334937304,1723660241544,-500.0,0.00013698,2]
[334937305,1723660241554,-500.0,0.00013698,2]
[334937306,1723660241564,-500.0,0.00013698,2]
[334937307,1723660241574,-505.03,0.00013698,2]
[334937308,1723660241584,-500.0,0.00013698,2]
[334937309,1723660241593,-500.0,0.00013698,2]
[334937310,1723660241603,-175.14000595,0.00013698,2]
[334937311,1723660241612,-500.0,0.00013698,2]
[334937312,1723660241621,-500.0,0.00013698,2]
[334937313,1723660241630,-500.0,0.00013698,2]
[334937314,1723660241640,-630.9,0.00013698,2]
[334937315,1723660241649,-500.0,0.00013698,2]
[334937316,1723660241659,-500.0,0.00013698,2]
[334937317,1723660241668,-545.33902437,0.00013698,2]
[334937318,1723660241678,-500.0,0.00013698,2]
[334937319,1723660241687,-500.0,0.00013698,2]
[334937320,1723660241696,-500.0,0.00013698,2]
[334937321,1723660241705,-500.0,0.00013698,2]
[334937322,1723660241715,-500.0,0.00013698,2]
[334937323,1723660241724,-525.84,0.00013698,2]
[334937324,1723660241734,-511.38,0.00013698,2]
[334937325,1723660241743,-542.05,0.00013698,2]
[334937326,1723660241752,-500.0,0.00013698,2]
[334937327,1723660241763,-500.0,0.00013698,2]
[334937328,1723660241773,-553.07,0.00013698,2]
[334937329,1723660241782,-500.0,0.00013698,2]
[334937330,1723660241791,-500.0,0.00013698,2]
[334937331,1723660241801,-554.79,0.00013698,2]
[334937332,1723660241811,-500.0,0.00013698,2]
[334937333,1723660241821,-500.0,0.00013698,2]
[334937334,1723660241830,-199.55934254,0.00013698,2]
[334937335,1723660241840,-500.95829879,0.00013698,2]
[334937336,1723660241849,-565.72751461,0.00013698,2]
[334937337,1723660241860,-500.0,0.00013698,2]
[334937338,1723660241870,-500.0,0.00013698,2]
[334937339,1723660241880,-511.15837611,0.00013698,2]
[334937340,1723660241889,-500.0,0.00013698,2]
[334937341,1723660241898,-500.0,0.00013698,2]
[334937342,1723660241908,-500.0,0.00013698,2]
[334937343,1723660241918,-500.0,0.00013698,2]
[334937344,1723660241927,-500.0,0.00013698,2]
[334937345,1723660241938,-500.0,0.00013698,2]
[334937346,1723660241949,-501.22437282,0.00013698,2]
[334937347,1723660241959,-500.0,0.00013698,2]
[334937348,1723660241968,-500.0,0.00013698,2]
[334937349,1723660241978,-500.0,0.00013698,2]
[334937350,1723660241988,-500.0,0.00013698,2]
[334937351,1723660241997,-500.0,0.00013698,2]
[334937352,1723660242007,-510.24416344,0.00013698,2]
[334937353,1723660242016,-569.15,0.00013698,2]
[334937354,1723660242026,-500.0,0.00013698,2]
[334937355,1723660242036,-500.0,0.00013698,2]
[334937356,1723660242045,-500.0,0.00013698,2]
[334937357,1723660242055,-177.06067396,0.00013698,2]
[334937358,1723660242065,-500.0,0.00013698,2]
[334937359,1723660242075,-500.0,0.00013698,2]
[334937360,1723660242084,-329.76259624,0.00013698,2]
[334937361,1723660242093,-500.0,0.00013698,2]
[334937362,1723660242102,-500.0,0.00013698,2]
[334937363,1723660242112,-500.0,0.00013698,2]
[334937364,1723660242122,-500.0,0.00013698,2]
[334937365,1723660242134,-500.0,0.00013698,2]
[334937366,1723660242146,-500.0,0.00013698,2]
[334937367,1723660242156,-500.0,0.00013698,2]
[334937368,1723660242165,-500.0,0.00013698,2]
[334937369,1723660242174,-500.0,0.00013698,2]
[334937370,1723660242183,-500.0,0.00013698,2]
[334937371,1723660242192,-500.0,0.00013698,2]
[334937372,1723660242202,-500.0,0.00013698,2]
[334937373,1723660242211,-500.0,0.00013698,2]
[334937374,1723660242220,-500.0,0.00013698,2]
[334937375,1723660242230,-500.0,0.00013698,2]
[334937376,1723660242241,-500.0,0.00013698,2]
[334937377,1723660242252,-500.0,0.00013698,2]
[334937378,1723660242263,-500.0,0.00013698,2]
[334937379,1723660242273,-228.95388318,0.00013698,2]
[334937380,1723660242282,-500.0,0.00013698,2]
[334937381,1723660242291,-500.0,0.00013698,2]
[334937382,1723660242300,-500.0,0.00013698,2]
[334937383,1723660242310,-500.0,0.00013698,2]
[334937384,1723660242319,-500.0,0.00013698,2]
[334937385,1723660242328,-500.0,0.00013698,2]
[334937386,1723660242337,-500.0,0.00013698,2]
[334937387,1723660242346,-500.0,0.00013698,2]
[334937388,1723660242356,-500.0,0.00013698,2]
[334937389,1723660242366,-500.0,0.00013698,2]
[334937390,1723660242377,-500.0,0.00013698,2]
[334937391,1723660242390,-500.0,0.00013698,2]
[334937392,1723660242399,-568.25,0.00013698,2]
[334937393,1723660242409,-640.38656614,0.00013698,2]
[334937394,1723660242418,-500.0,0.00013698,2]
[334937395,1723660242427,-500.0,0.00013698,2]
[334937396,1723660242437,-500.0,0.00013698,2]
[334937397,1723660242446,-500.0,0.00013698,2]
[334937398,1723660242455,-500.0,0.00013698,2]
[334937399,1723660242467,-612.1,0.00013698,2]
[334937400,1723660242476,-636.1,0.00013698,2]
[334937401,1723660242486,-506.87239938,0.00013698,2]
[334937402,1723660242495,-500.0,0.00013698,2]
[334937403,1723660242505,-242.45375275,0.00013698,2]
[334937404,1723660242514,-500.0,0.00013698,2]
[334937405,1723660242523,-500.0,0.00013698,2]
[334937406,1723660242533,-500.0,0.00013698,2]
[334937407,1723660242542,-664.29,0.00013698,2]
[334937408,1723660242552,-500.0,0.00013698,2]
[334937409,1723660242562,-502.77899105,0.00013698,2]
[334937410,1723660242571,-500.0,0.00013698,2]
[334937411,1723660242580,-500.0,0.00013698,2]
[334937412,1723660242589,-500.0,0.00013698,2]
[334937413,1723660242598,-500.0,0.00013698,2]
[334937414,1723660242607,-500.0,0.00013698,2]
[334937415,1723660242616,-826.95,0.00013698,2]
[334937416,1723660242625,-500.0,0.00013698,2]
[334937417,1723660242634,-500.0,0.00013698,2]
[334937418,1723660242644,-500.0,0.00013698,2]
[334937419,1723660242654,-500.0,0.00013698,2]
[334937420,1723660242663,-500.0,0.00013698,2]
[334937421,1723660242672,-500.0,0.00013698,2]
[334937422,1723660242682,-500.0,0.00013698,2]
[334937423,1723660242691,-500.0,0.00013698,2]
[334937424,1723660242700,-500.0,0.00013698,2]
[334937425,1723660242722,-500.0,0.00013698,2]
[334937426,1723660242732,-500.0,0.00013698,2]
[334937427,1723660242741,-535.86267166,0.00013698,2]
[334937428,1723660242750,-500.0,0.00013698,2]
[334937429,1723660242760,-500.0,0.00013698,2]
[334937430,1723660242770,-504.26627208,0.00013698,2]
[334937431,1723660242780,-500.0,0.00013698,2]
[334937432,1723660242790,-500.0,0.00013698,2]
[334937433,1723660242799,-703.57,0.00013698,2]
[334937434,1723660242808,-500.0,0.00013698,2]
[334937435,1723660242943,-500.0,0.00013698,2]
[334937436,1723660242953,-500.0,0.00013698,2]
[334937437,1723660242964,-500.0,0.00013698,2]
[334937438,1723660242974,-502.67983931,0.00013698,2]
[334937439,1723660242986,-576.28583939,0.00013698,2]
[334937440,1723660242997,-718.81,0.00013698,2]
[334937441,1723660243009,-500.0,0.00013698,2]
[334937442,1723660243018,-521.93036736,0.00013698,2]
[334937443,1723660243027,-500.0,0.00013698,2]
[334937444,1723660243040,-672.46,0.00013698,2]
[334937445,1723660243050,-500.0,0.00013698,2]
[334937446,1723660243061,-500.0,0.00013698,2]
[334937447,1723660243070,-545.38,0.00013698,2]
[334937448,1723660243079,-827.97,0.00013698,2]
[334937449,1723660243089,-515.34,0.00013698,2]
[334937450,1723660243098,-500.0,0.00013698,2]
[334937451,1723660243107,-500.0,0.00013698,2]
[334937452,1723660243116,-500.0,0.00013698,2]
[334937453,1723660243126,-500.0,0.00013698,2]
[334937454,1723660243135,-500.0,0.00013698,2]
[334937455,1723660243143,-500.0,0.00013698,2]
[334937456,1723660243152,-567.33,0.00013698,2]
[334937457,1723660243161,-500.0,0.00013698,2]
[334937458,1723660243170,-500.0,0.00013698,2]
[334937459,1723660243179,-532.54,0.00013698,2]
[334937460,1723660243188,-651.05,0.00013698,2]
[334937461,1723660243198,-500.0,0.00013698,2]
[334937462,1723660243207,-514.52210344,0.00013698,2]
[334937463,1723660243216,-500.0,0.00013698,2]
[334937464,1723660243226,-500.0,0.00013698,2]
[334937465,1723660243235,-500.0,0.00013698,2]
[334937466,1723660243244,-500.0,0.00013698,2]
[334937467,1723660243253,-549.6448686,0.00013698,2]
[334937469,1723660243264,-510.9379568,0.00013698,2]
[334937470,1723660243273,-716.68,0.00013698,2]
[334937471,1723660243282,-500.0,0.00013698,2]
[334937472,1723660243292,-500.24183084,0.00013698,2]
[334937474,1723660243301,-528.43,0.00013698,2]
[334937476,1723660243310,-500.0,0.00013698,2]
[334937478,1723660243319,-500.0,0.00013698,2]
[334937480,1723660243328,-500.0,0.00013698,2]
[334937482,1723660243337,-500.0,0.00013698,2]
[334937484,1723660243346,-500.0,0.00013698,2]
[334937485,1723660243356,-500.0,0.00013698,2]
[334937486,1723660243365,-500.0,0.00013698,2]
[334937487,1723660243375,-500.0,0.00013698,2]
[334937489,1723660243388,-500.0,0.00013698,2]
[334937491,1723660243398,-532.09,0.00013698,2]
[334937492,1723660243408,-500.0,0.00013698,2]
[334937493,1723660243417,-500.0,0.00013698,2]
[334937494,1723660243427,-504.88,0.00013698,2]
[334937495,1723660243437,-500.0,0.00013698,2]
[334937497,1723660243448,-510.04752351,0.00013698,2]
[334937499,1723660243459,-500.0,0.00013698,2]
[334937501,1723660243468,-501.12598611,0.00013698,2]
[334937502,1723660243478,-500.0,0.00013698,2]
[334937503,1723660243487,-500.0,0.00013698,2]
[334937504,1723660243497,-530.49984734,0.00013698,2]
[334937505,1723660243507,-500.0,0.00013698,2]
[334937506,1723660243517,-500.0,0.00013698,2]
[334937507,1723660243527,-500.0,0.00013698,2]
[334937508,1723660243537,-485.51398576,0.00013698,2]
[334937509,1723660243547,-626.58,0.00013698,2]
[334937511,1723660243556,-500.0,0.00013698,2]
[334937512,1723660243566,-500.0,0.00013698,2]
[334937514,1723660243576,-500.0,0.00013698,2]
[334937516,1723660243586,-500.0,0.00013698,2]
[334937518,1723660243595,-500.0,0.00013698,2]
[334937520,1723660243604,-500.0,0.00013698,2]
[334937522,1723660243614,-500.0,0.00013698,2]
[334937523,1723660243624,-500.0,0.00013698,2]
[334937524,1723660243633,-525.9,0.00013698,2]
[334937525,1723660243642,-500.0,0.00013698,2]
[334937526,1723660243652,-508.14820409,0.00013698,2]
[334937527,1723660243661,-500.0,0.00013698,2]
[334937528,1723660243671,-500.0,0.00013698,2]
[334937529,1723660243680,-500.0,0.00013698,2]
[334937530,1723660243689,-529.88,0.00013698,2]
[334937531,1723660243698,-500.0,0.00013698,2]
[334937532,1723660243708,-526.17183015,0.00013698,2]
[334937533,1723660243717,-555.58,0.00013698,2]
[334937534,1723660243727,-505.0735467,0.00013698,2]
[334937535,1723660243737,-500.0,0.00013698,2]
[334937536,1723660243746,-500.0,0.00013698,2]
[334937537,1723660243757,-502.26218257,0.00013698,2]
[334937538,1723660243767,-500.0,0.00013698,2]
[334937539,1723660243776,-1191.15,0.00013698,2]
[334937540,1723660243786,-500.0,0.00013698,2]
[334937541,1723660243796,-500.0,0.00013698,2]
[334937542,1723660243808,-500.0,0.00013698,2]
[334937543,1723660243817,-528.39,0.00013698,2]
[334937544,1723660243826,-564.48,0.00013698,2]
[334937545,1723660243837,-500.0,0.00013698,2]
[334937546,1723660243848,-711.34,0.00013698,2]
[334937547,1723660243858,-500.0,0.00013698,2]
[334937548,1723660243867,-500.0,0.00013698,2]
[334937549,1723660243876,-500.0,0.00013698,2]
[334937550,1723660243885,-561.84,0.00013698,2]
[334937551,1723660243895,-558.9,0.00013698,2]
[334937552,1723660243904,-500.0,0.00013698,2]
[334937553,1723660243914,-500.0,0.00013698,2]
[334937555,1723660243924,-569.32236812,0.00013698,2]
[334937556,1723660243933,-500.0,0.00013698,2]
[334937558,1723660243943,-500.0,0.00013698,2]
[334937560,1723660243953,-500.0,0.00013698,2]
[334937562,1723660243964,-500.0,0.00013698,2]
[334937564,1723660243974,-500.0,0.00013698,2]
[334937565,1723660243983,-500.0,0.00013698,2]
[334937567,1723660243992,-500.0,0.00013698,2]
[334937569,1723660244002,-500.0,0.00013698,2]
[334937571,1723660244014,-500.0,0.00013698,2]
[334937572,1723660244023,-500.0,0.00013698,2]
[334937574,1723660244032,-506.3303359,0.00013698,2]
[334937576,1723660244042,-504.09982287,0.00013698,2]
[334937578,1723660244052,-636.68,0.00013698,2]
[334937579,1723660244062,-670.43,0.00013698,2]
[334937581,1723660244071,-500.0,0.00013698,2]
[334937583,1723660244081,-500.0,0.00013698,2]
[334937585,1723660244090,-500.0,0.00013698,2]
[334937587,1723660244103,-676.49,0.00013698,2]
[334937589,1723660244114,-500.0,0.00013698,2]
[334937591,1723660244126,-500.0,0.00013698,2]
[334937593,1723660244136,-500.0,0.00013698,2]
[334937594,1723660244147,-500.0,0.00013698,2]
[334937596,1723660244158,-502.81348435,0.00013698,2]
[334937598,1723660244167,-500.0,0.00013698,2]
[334937599,1723660244176,-570.9,0.00013698,2]
[334937600,1723660244186,-508.01163948,0.00013698,2]
[334937601,1723660244195,-500.0,0.00013698,2]
[334937602,1723660244205,-582.19282732,0.00013698,2]
[334937603,1723660244214,-500.0,0.00013698,2]
[334937604,1723660244223,-500.0,0.00013698,2]
[334937605,1723660244233,-500.0,0.00013698,2]
[334937606,1723660244243,-500.0,0.00013698,2]
[334937607,1723660244254,-634.54673929,0.00013698,2]
[334937608,1723660244266,-500.0,0.00013698,2]
[334937609,1723660244276,-500.0,0.00013698,2]
[334937610,1723660244285,-500.0,0.00013698,2]
[334937611,1723660244295,-500.0,0.00013698,2]
[334937612,1723660244304,-501.52075038,0.00013698,2]
[334937613,1723660244314,-500.0,0.00013698,2]
[334937614,1723660244323,-500.0,0.00013698,2]
[334937615,1723660244333,-500.0,0.00013698,2]
[334937616,1723660244342,-500.0,0.00013698,2]
[334937617,1723660244352,-500.0,0.00013698,2]
[334937618,1723660244362,-500.0,0.00013698,2]
[334937619,1723660244372,-500.0,0.00013698,2]
[334937620,1723660244381,-754.07,0.00013698,2]
[334937621,1723660244393,-572.53,0.00013698,2]
[334937622,1723660244403,-500.0,0.00013698,2]
[334937623,1723660244413,-500.0,0.00013698,2]
[334937624,1723660244425,-500.0,0.00013698,2]
[334937625,1723660244435,-500.0,0.00013698,2]
[334937626,1723660244445,-514.56240415,0.00013698,2]
[334937627,1723660244454,-752.24,0.00013698,2]
[334937628,1723660244464,-500.0,0.00013698,2]
[334937629,1723660244473,-346.52395049,0.00013698,2]
[334937630,1723660244483,-500.0,0.00013698,2]
[334937631,1723660244492,-518.83,0.00013698,2]
[334937632,1723660244502,-500.0,0.00013698,2]
[334937633,1723660244515,-500.0,0.00013698,2]
[334937634,1723660244524,-500.0,0.00013698,2]
[334937635,1723660244533,-521.17,0.00013698,2]
[334937636,1723660244542,-500.0,0.00013698,2]
[334937637,1723660244552,-722.53,0.00013698,2]
[334937638,1723660244562,-500.0,0.00013698,2]
[334937639,1723660244571,-500.0,0.00013698,2]
[334937640,1723660244581,-500.0,0.00013698,2]
[334937641,1723660244590,-500.0,0.00013698,2]
[334937642,1723660244599,-500.0,0.00013698,2]
[334937643,1723660244609,-500.0,0.00013698,2]
[334937644,1723660244618,-500.0,0.00013698,2]
[334937645,1723660244628,-500.0,0.00013698,2]
[334937646,1723660244637,-505.85005909,0.00013698,2]
[334937647,1723660244646,-500.0,0.00013698,2]
[334937648,1723660244656,-500.0,0.00013698,2]
[334937649,1723660244665,-500.0,0.00013698,2]
[334937650,1723660244674,-674.45,0.00013698,2]
[334937651,1723660244683,-500.0,0.00013698,2]
[334937652,1723660244693,-877.52,0.00013698,2]
[334937653,1723660244702,-643.25286879,0.00013698,2]
[334937654,1723660244711,-772.67,0.00013698,2]
[334937655,1723660244721,-508.38490867,0.00013698,2]
[334937656,1723660244731,-500.0,0.00013698,2]
[334937657,1723660244742,-500.0,0.00013698,2]
[334937658,1723660244751,-500.0,0.00013698,2]
[334937659,1723660244770,-500.0,0.00013698,2]
[334937660,1723660244779,-500.0,0.00013698,2]
[334937661,1723660244789,-500.0,0.00013698,2]
[334937662,1723660244798,-500.0,0.00013698,2]
[334937663,1723660244807,-500.0,0.00013698,2]
[334937664,1723660244817,-500.0,0.00013698,2]
[334937665,1723660244828,-500.0,0.00013698,2]
[334937666,1723660244838,-500.0,0.00013698,2]
[334937667,1723660244848,-500.0,0.00013698,2]
[334937668,1723660244859,-500.0,0.00013698,2]
[334937669,1723660244871,-500.0,0.00013698,2]
[334937670,1723660244880,-300.0,0.00013698,2]
[334937671,1723660244889,-500.0,0.00013698,2]
[334937672,1723660244898,-500.0,0.00013698,2]
[334937673,1723660244908,-500.0,0.00013698,2]
[334937674,1723660244918,-657.7,0.00013698,2]
[334937675,1723660244928,-702.01,0.00013698,2]
[334937676,1723660244937,-500.0,0.00013698,2]
[334937677,1723660244947,-500.0,0.00013698,2]
[334937678,1723660244957,-500.0,0.00013698,2]
[334937679,1723660244967,-500.0,0.00013698,2]
[334937680,1723660244976,-507.44697175,0.00013698,2]
[334937681,1723660244985,-677.93,0.00013698,2]
[334937682,1723660244994,-500.0,0.00013698,2]
[334937683,1723660245004,-503.6576368,0.00013698,2]
[334937684,1723660245018,-500.0,0.00013698,2]
[334937685,1723660245030,-500.0,0.00013698,2]
[334937686,1723660245040,-500.0,0.00013698,2]
[334937687,1723660245049,-721.0,0.00013698,2]
[334937688,1723660245059,-501.46686431,0.00013698,2]
[334937689,1723660245068,-500.0,0.00013698,2]
[334937690,1723660245077,-500.0,0.00013698,2]
[334937691,1723660245086,-500.0,0.00013698,2]
[334937692,1723660245095,-500.0,0.00013698,2]
[334937693,1723660245104,-502.7630188,0.00013698,2]
[334937694,1723660245113,-500.0,0.00013698,2]